[Event "European School-ch 2019"]
[Site "Mamaia"]
[Date "2019.05.31"]
[Round "1.54"]
[White "Anghel, Maria"]
[Black "Donghvani, Nia"]
[Result "0-1"]
[ECO "A61"]
[WhiteElo "1695"]
[BlackElo "1914"]
[Annotator "NA"]
[PlyCount "118"]
[EventDate "2019.05.31"]
[EventType "swiss"]
[EventCountry "ROU"]
[SourceTitle "playchess.com"]
[Source "ChessBase"]
[SourceQuality "1"]
[TimeControl "40/5400+30:1800+30"]

1. d4 {[%emt 0:00:00]} Nf6 {[%emt 0:00:00]} 2. Nf3 {[%emt 0:00:00]} c5 {[%emt 0:00:02]} 3. d5 {[%emt 0:00:15]} e6 {[%emt 0:00:29]} 4. c4 {[%emt 0:01:30]} exd5 {[%emt 0:00:13]} 5. cxd5 {[%emt 0:00:14]} d6 {[%emt 0:02:17]} 6. Nc3 {[%emt 0:03:19]} g6 {[%emt 0:00:05]} 7. Bf4 {[%emt 0:01:06]} Nh5 {[%emt 0:06:50]} 8. Bg5 {[%emt 0:04:16]} Be7 {[%emt 0:00:01]} 9. Bxe7 {[%emt 0:07:32]} Qxe7 {[%emt 0:00:05]} 10. Qa4+ {[%emt 0:05:43]} Nd7 {[%emt 0:10:48]} 11. e3 {[%emt 0:04:10]} O-O {[%emt 0:02:10]} 12. Be2 {[%emt 0:04:13]} a6 {[%emt 0:05:48]} 13. Qe4 {[%emt 0:10:50]} Qd8 {[%emt 0:07:37]} 14. a4 {[%emt 0:02:09]} Re8 {[%emt 0:10:49]} 15. Qc2 {[%emt 0:01:52]} Ndf6 {[%emt 0:00:56]} 16. O-O {[%emt 0:04:46]} Rb8 {[%emt 0:02:56]} 17. h3 {[%emt 0:04:05]} Bd7 {[%emt 0:05:57]} 18. a5 {[%emt 0:04:23]} Qc8 {[%emt 0:08:18]} 19. Rfd1 {[%emt 0:11:34]} b5 {[%emt 0:11:05]} 20. axb6 {[%emt 0:01:14]} Rxb6 {[%emt 0:00:01]} 21. Nd2 {[%emt 0:05:36]} Bb5 {[%emt 0:09:03]} 22. Nc4 {[%emt 0:06:11]} Bxc4 {[%emt 0:00:02]} 23. Bxc4 {[%emt 0:00:13]} Qb7 {[%emt 0:02:43]} 24. b3 {[%emt 0:03:03]} Nd7 {[%emt 0:03:45]} 25. Qe2 {[%emt 0:05:36]} Ra8 {[%emt 0:04:42]} 26. Ra5 {[%emt 0:05:39]} Ne5 {[%emt 0:03:21]} 27. Rda1 {[%emt 0:03:21]} Nxc4 {[%emt 0:00:02]} 28. bxc4 {[%emt 0:00:11]} Rb2 {[%emt 0:01:04]} 29. Qf3 {[%emt 0:00:43]} Qb4 {[%emt 0:02:19]} 30. Ne4 {[%emt 0:00:42]} Rb1+ {[%emt 0:00:23]} 31. Rxb1 {[%emt 0:00:31]} Qxb1+ {[%emt 0:00:06]} 32. Kh2 {[%emt 0:00:07]} Qb6 {[%emt 0:00:07]} 33. Ra1 {[%emt 0:00:51]} Qc7 {[%emt 0:01:50]} 34. g4 {[%emt 0:00:30]} Ng7 {[%emt 0:00:02]} 35. Qg3 {[%emt 0:00:32]} Ne8 {[%emt 0:00:18]} 36. h4 {[%emt 0:00:28]} a5 {[%emt 0:00:19]} 37. h5 {[%emt 0:00:28]} Qe7 {[%emt 0:01:11]} 38. f3 {[%emt 0:00:34]} a4 {[%emt 0:00:05]} 39. hxg6 {[%emt 0:00:29]} fxg6 {[%emt 0:00:42]} 40. Kg2 {[%emt 0:00:22]} a3 {[%emt 0:00:04]} 41. g5 {[%emt 0:04:12]} Qb7 {[%emt 0:12:00]} 42. Qe1 {[%emt 0:10:52]} a2 {[%emt 0:14:53]} 43. Qc3 {[%emt 0:08:54]} Qb1 {[%emt 0:05:02]} 44. Nd2 {[%emt 0:01:28]} Qb4 {[%emt 0:00:29]} 45. Qc2 {[%emt 0:02:38]} Qa3 {[%emt 0:00:50]} 46. Kf2 {[%emt 0:01:06]} Nc7 {[%emt 0:00:31]} 47. Ke2 {[%emt 0:01:50]} Ra4 {[%emt 0:00:36]} 48. Ne4 {[%emt 0:01:36]} Na6 {[%emt 0:00:29]} 49. Nxd6 {[%emt 0:01:29]} Nb4 {[%emt 0:00:15]} 50. Qd2 {[%emt 0:00:41]} Qb3 {[%emt 0:00:37]} 51. Ne4 {[%emt 0:00:52]} Qxc4+ {[%emt 0:00:24]} 52. Kf2 {[%emt 0:00:16]} Qc2 {[%emt 0:00:46]} 53. Ke2 {[%emt 0:00:46]} Qc4+ {[%emt 0:00:25]} 54. Kd1 {[%emt 0:00:29]} Ra3 {[%emt 0:00:29]} 55. Ke1 {[%emt 0:00:31]} Nc2+ {[%emt 0:00:32]} 56. Kf2 {[%emt 0:00:23]} Nxa1 {[%emt 0:00:21]} 57. Nf6+ {[%emt 0:00:36]} Kf7 {[%emt 0:00:34]} 58. Kg3 {[%emt 0:00:30]} Nb3 {[%emt 0:00:32]} 59. Qb2 {[%emt 0:00:32]} a1=Q {[%emt 0:00:03]} 0-1

[Event "European School-ch 2019"]
[Site "Mamaia"]
[Date "2019.05.31"]
[Round "1.55"]
[White "Vorobyova, Ekaterina"]
[Black "Moskaleva, Arina"]
[Result "1-0"]
[ECO "B24"]
[WhiteElo "1908"]
[BlackElo "1586"]
[Annotator "NA"]
[PlyCount "87"]
[EventDate "2019.05.31"]
[EventType "swiss"]
[EventCountry "ROU"]
[SourceTitle "playchess.com"]
[Source "ChessBase"]
[SourceQuality "1"]
[TimeControl "40/5400+30:1800+30"]

1. e4 {[%emt 0:00:00]} c5 {[%emt 0:00:00]} 2. Nc3 {[%emt 0:00:00]} Nc6 {[%emt 0:01:08]} 3. g3 {[%emt 0:00:01]} g6 {[%emt 0:01:29]} 4. Bg2 {[%emt 0:00:09]} Bg7 5. d3 {[%emt 0:01:02]} e6 {[%emt 0:01:49]} 6. Be3 {[%emt 0:00:42]} d6 {[%emt 0:01:24]} 7. Qd2 {[%emt 0:00:36]} Nge7 {[%emt 0:06:51]} 8. Bh6 {[%emt 0:04:13]} O-O {[%emt 0:04:58]} 9. h4 {[%emt 0:01:04]} Bf6 {[%emt 0:09:10]} 10. Bxf8 {[%emt 0:01:36]} Qxf8 {[%emt 0:00:29]} 11. O-O-O {[%emt 0:01:07]} b5 {[%emt 0:02:15]} 12. Nge2 {[%emt 0:07:55]} b4 {[%emt 0:04:16]} 13. Nb1 {[%emt 0:00:31]} Ba6 {[%emt 0:03:48]} 14. c3 {[%emt 0:05:34]} Ne5 {[%emt 0:02:05]} 15. c4 {[%emt 0:03:09]} Rc8 {[%emt 0:02:49]} 16. f4 {[%emt 0:02:58]} N5c6 {[%emt 0:02:31]} 17. h5 {[%emt 0:02:38]} Nd4 {[%emt 0:02:51]} 18. Nxd4 {[%emt 0:01:06]} Bxd4 {[%emt 0:00:11]} 19. hxg6 {[%emt 0:01:44]} fxg6 {[%emt 0:01:18]} 20. Rh2 {[%emt 0:01:44]} d5 {[%emt 0:02:58]} 21. exd5 {[%emt 0:01:32]} exd5 {[%emt 0:00:54]} 22. Qe2 {[%emt 0:00:42]} Qf7 {[%emt 0:09:56]} 23. Re1 {[%emt 0:03:05]} Rc7 {[%emt 0:10:40]} 24. Nd2 {[%emt 0:01:05]} dxc4 {[%emt 0:01:31]} 25. dxc4 {[%emt 0:00:40]} Bc8 {[%emt 0:01:21]} 26. Be4 {[%emt 0:10:13]} Bd7 {[%emt 0:08:22]} 27. Nf3 {[%emt 0:03:30]} Bg4 {[%emt 0:05:07]} 28. Qc2 {[%emt 0:00:48]} Bxf3 {[%emt 0:00:20]} 29. Bxf3 {[%emt 0:00:10]} Qf6 {[%emt 0:01:26]} 30. Rhe2 {[%emt 0:00:59]} Kg7 {[%emt 0:01:09]} 31. Re6 {[%emt 0:00:38]} Qf7 {[%emt 0:00:33]} 32. Bd5 {[%emt 0:02:39]} Qf8 {[%emt 0:01:07]} 33. Qe4 {[%emt 0:01:57]} Ng8 {[%emt 0:02:23]} 34. Re8 {[%emt 0:00:27]} Nf6 {[%emt 0:00:44]} 35. Rxf8 {[%emt 0:00:10]} Nxe4 {[%emt 0:00:34]} 36. Rg8+ {[%emt 0:00:10]} Kf6 {[%emt 0:00:05]} 37. Rxe4 {[%emt 0:01:45]} Kf5 {[%emt 0:00:16]} 38. Rge8 {[%emt 0:03:11]} Kg4 {[%emt 0:00:19]} 39. R4e7 {[%emt 0:02:19]} Rxe7 {[%emt 0:00:17]} 40. Rxe7 {[%emt 0:00:04]} Kxg3 {[%emt 0:00:11]} 41. Rxh7 {[%emt 0:30:27]} Kxf4 {[%emt 0:30:04]} 42. Rh4+ {[%emt 0:00:16]} Kf5 {[%emt 0:00:22]} 43. Be4+ {[%emt 0:01:30]} Ke5 {[%emt 0:00:09]} 44. Bxg6 {[%emt 0:00:10]} 1-0

[Event "European School-ch 2019"]
[Site "Mamaia"]
[Date "2019.06.01"]
[Round "2.1"]
[White "Paraschiv, Paul-Alexandru"]
[Black "Schitco, Ivan"]
[Result "0-1"]
[ECO "A45"]
[WhiteElo "2055"]
[BlackElo "2458"]
[Annotator "ChessBase"]
[PlyCount "54"]
[EventDate "2019.05.31"]
[EventType "swiss"]
[EventCountry "ROU"]
[SourceTitle "playchess.com"]
[Source "ChessBase"]
[SourceQuality "1"]
[TimeControl "40/5400+30:1800+30"]

1. d4 {[%emt 0:00:00]} Nf6 {[%emt 0:00:00]} 2. Bg5 {[%emt 0:00:00]} d5 {[%emt 0:00:09]} 3. e3 {[%emt 0:01:49]} c5 {[%emt 0:01:34]} 4. Bxf6 {[%emt 0:02:38]} gxf6 {[%emt 0:00:13]} 5. Bb5+ {[%emt 0:01:00]} Nc6 {[%emt 0:02:50]} 6. dxc5 {[%emt 0:03:54]} e6 {[%emt 0:06:43]} 7. c4 {[%emt 0:08:37]} dxc4 {[%emt 0:06:00]} 8. Qf3 {[%emt 0:09:34]} Bd7 {[%emt 0:03:03]} 9. Nc3 {[%emt 0:05:06]} a6 {[%emt 0:12:50]} 10. Bxc4 {[%emt 0:02:12]} Ne5 {[%emt 0:00:31]} 11. Qe2 {[%emt 0:01:00]} Bxc5 {[%emt 0:03:45]} 12. Nf3 {[%emt 0:01:56]} Nxc4 {[%emt 0:03:57]} 13. Qxc4 {[%emt 0:00:48]} Be7 {[%emt 0:01:48]} 14. Rd1 {[%emt 0:01:48]} Qb6 {[%emt 0:05:25]} 15. O-O {[%emt 0:04:37]} Rc8 {[%emt 0:07:33]} 16. Qd3 {[%emt 0:01:46]} Rd8 {[%emt 0:01:04]} 17. Qc2 {[%emt 0:02:53]} Qc7 {[%emt 0:05:20]} 18. Rd4 {[%emt 0:01:15]} f5 {[%emt 0:02:43]} 19. Rfd1 {[%emt 0:01:05]} Rg8 {[%emt 0:01:21]} 20. Qd2 {[%emt 0:04:03]} Bf6 {[%emt 0:02:39]} 21. Rd6 {[%emt 0:00:43]} Bc6 {[%emt 0:01:03]} 22. Rxd8+ {[%emt 0:01:32]} Qxd8 {[%emt 0:00:24]} 23. Qe2 {[%emt 0:00:55]} Qb6 {[%emt 0:04:19]} 24. Kh1 {[%emt 0:01:24]} Qb4 {[%emt 0:01:36]} 25. a3 {[%emt 0:04:01]} Qg4 {[%emt 0:01:05]} 26. Rg1 {[%emt 0:00:20]} Bxc3 {[%emt 0:02:44]} 27. bxc3 {[%emt 0:01:03]} Ke7 {[%emt 0:00:28]} 0-1

[Event "European School-ch 2019"]
[Site "Mamaia"]
[Date "2019.06.01"]
[Round "2.2"]
[White "Stoleriu, George"]
[Black "Zemnitskiy, Alexander"]
[Result "1/2-1/2"]
[ECO "B30"]
[WhiteElo "2372"]
[BlackElo "2024"]
[Annotator "ChessBase"]
[PlyCount "45"]
[EventDate "2019.05.31"]
[EventType "swiss"]
[EventCountry "ROU"]
[SourceTitle "playchess.com"]
[Source "ChessBase"]
[SourceQuality "1"]
[TimeControl "40/5400+30:1800+30"]

1. e4 {[%emt 0:00:00]} c5 {[%emt 0:00:00]} 2. Nf3 {[%emt 0:00:00]} Nc6 {[%emt 0:00:11]} 3. b3 {[%emt 0:00:42]} Nf6 {[%emt 0:01:21]} 4. Nc3 {[%emt 0:00:18]} d5 {[%emt 0:01:52]} 5. exd5 {[%emt 0:00:54]} Nxd5 {[%emt 0:00:05]} 6. Bb2 {[%emt 0:05:37]} Bg4 {[%emt 0:04:54]} 7. Bc4 {[%emt 0:10:34]} e6 {[%emt 0:00:44]} 8. Nxd5 {[%emt 0:00:31]} exd5 {[%emt 0:00:33]} 9. Bb5 {[%emt 0:00:36]} d4 {[%emt 0:04:25]} 10. Bxc6+ {[%emt 0:19:43]} bxc6 {[%emt 0:00:04]} 11. Qe2+ {[%emt 0:00:10]} Be7 {[%emt 0:00:43]} 12. Qe4 {[%emt 0:00:14]} Bxf3 13. Qxf3 {[%emt 0:00:05]} Qd5 {[%emt 0:00:28]} 14. Qxd5 {[%emt 0:03:50]} cxd5 {[%emt 0:00:02]} 15. O-O-O {[%emt 0:00:19]} Kd7 {[%emt 0:00:54]} 16. Rhe1 {[%emt 0:04:12]} Bf6 {[%emt 0:00:45]} 17. Re2 {[%emt 0:00:24]} Rhe8 {[%emt 0:11:39]} 18. Rde1 {[%emt 0:00:05]} Re6 {[%emt 0:00:19]} 19. d3 {[%emt 0:01:48]} Ra6 {[%emt 0:06:33]} 20. Kb1 {[%emt 0:00:40]} Re6 {[%emt 0:05:08]} 21. Kc1 {[%emt 0:02:22]} Ra6 {[%emt 0:00:04]} 22. Kb1 {[%emt 0:00:04]} Re6 {[%emt 0:00:05]} 23. Kc1 {[%emt 0:03:20]} 1/2-1/2

[Event "European School-ch 2019"]
[Site "Mamaia"]
[Date "2019.06.01"]
[Round "2.3"]
[White "Ozdemir, Serhan Berat"]
[Black "Mammadov, Sadig"]
[Result "0-1"]
[ECO "C03"]
[WhiteElo "1950"]
[BlackElo "2208"]
[Annotator "ChessBase"]
[PlyCount "118"]
[EventDate "2019.05.31"]
[EventType "swiss"]
[EventCountry "ROU"]
[SourceTitle "playchess.com"]
[Source "ChessBase"]
[SourceQuality "1"]
[TimeControl "40/5400+30:1800+30"]

1. e4 {[%emt 0:00:00]} e6 {[%emt 0:00:00]} 2. d4 {[%emt 0:00:00]} d5 {[%emt 0:00:00]} 3. Nd2 {[%emt 0:00:00]} a6 {[%emt 0:00:05]} 4. Ngf3 {[%emt 0:01:30]} c5 {[%emt 0:00:08]} 5. dxc5 {[%emt 0:04:02]} Bxc5 {[%emt 0:01:13]} 6. Bd3 {[%emt 0:00:17]} Nc6 {[%emt 0:06:45]} 7. c3 {[%emt 0:08:17]} Nf6 {[%emt 0:04:55]} 8. Qe2 {[%emt 0:00:59]} O-O {[%emt 0:02:43]} 9. e5 {[%emt 0:01:02]} Nd7 {[%emt 0:01:34]} 10. Nb3 {[%emt 0:04:29]} Be7 {[%emt 0:01:44]} 11. O-O {[%emt 0:08:34]} Qc7 {[%emt 0:15:10]} 12. Bf4 {[%emt 0:04:53]} b5 {[%emt 0:01:50]} 13. Rfe1 {[%emt 0:11:41]} Rd8 {[%emt 0:04:43]} 14. h4 {[%emt 0:04:59]} Nf8 {[%emt 0:02:47]} 15. h5 {[%emt 0:03:54]} b4 {[%emt 0:06:08]} 16. cxb4 {[%emt 0:06:19]} Nxb4 {[%emt 0:00:37]} 17. Rac1 {[%emt 0:01:04]} Qb7 {[%emt 0:09:13]} 18. Bb1 {[%emt 0:00:43]} Bd7 {[%emt 0:03:38]} 19. Nfd4 {[%emt 0:05:34]} Bb5 {[%emt 0:07:29]} 20. Nxb5 {[%emt 0:09:02]} axb5 {[%emt 0:01:50]} 21. a3 {[%emt 0:00:35]} Nc6 {[%emt 0:00:49]} 22. Qg4 {[%emt 0:05:56]} Ra4 {[%emt 0:08:03]} 23. Qg3 {[%emt 0:01:57]} Nd4 {[%emt 0:07:39]} 24. Nxd4 {[%emt 0:02:05]} Rxd4 {[%emt 0:00:07]} 25. Bg5 {[%emt 0:02:33]} Bxg5 {[%emt 0:05:50]} 26. Qxg5 {[%emt 0:00:01]} Re8 {[%emt 0:00:16]} 27. h6 {[%emt 0:01:06]} Ng6 {[%emt 0:00:06]} 28. hxg7 {[%emt 0:03:30]} Qe7 {[%emt 0:02:57]} 29. Qe3 {[%emt 0:01:55]} Rg4 {[%emt 0:00:36]} 30. Bxg6 {[%emt 0:01:28]} hxg6 {[%emt 0:01:50]} 31. f3 {[%emt 0:00:42]} Rh4 {[%emt 0:00:29]} 32. g3 {[%emt 0:01:17]} Rh7 {[%emt 0:00:10]} 33. Kg2 {[%emt 0:02:32]} Kxg7 {[%emt 0:00:08]} 34. Rh1 {[%emt 0:00:08]} Reh8 {[%emt 0:00:03]} 35. Rxh7+ {[%emt 0:00:22]} Rxh7 {[%emt 0:00:01]} 36. Qf4 {[%emt 0:01:41]} Rh8 {[%emt 0:02:19]} 37. Rh1 {[%emt 0:01:26]} Rxh1 {[%emt 0:00:28]} 38. Kxh1 {[%emt 0:00:01]} Qd8 {[%emt 0:01:08]} 39. Qd4 {[%emt 0:02:08]} Qc7 {[%emt 0:00:35]} 40. Qf4 {[%emt 0:00:00]} Qb6 {[%emt 0:00:00]} 41. Kg2 {[%emt 0:04:03]} d4 {[%emt 0:03:01]} 42. Kf2 {[%emt 0:05:12]} d3+ {[%emt 0:01:25]} 43. Ke1 {[%emt 0:01:55]} Qc7 {[%emt 0:01:30]} 44. Qg5 {[%emt 0:05:52]} Kf8 {[%emt 0:05:53]} 45. Qe3 {[%emt 0:04:04]} Qc4 {[%emt 0:02:09]} 46. Qf4 {[%emt 0:02:16]} Qd5 {[%emt 0:07:17]} 47. Qe3 {[%emt 0:10:00]} Kg8 {[%emt 0:01:25]} 48. Qe4 {[%emt 0:00:58]} Qc5 {[%emt 0:03:00]} 49. Qf4 {[%emt 0:00:45]} Qg1+ {[%emt 0:02:35]} 50. Kd2 {[%emt 0:00:05]} Qb1 {[%emt 0:00:06]} 51. Qd4 {[%emt 0:01:01]} Qc2+ {[%emt 0:00:30]} 52. Ke3 {[%emt 0:00:04]} Qe2+ {[%emt 0:00:32]} 53. Kf4 {[%emt 0:00:02]} g5+ {[%emt 0:06:36]} 54. Kg4 {[%emt 0:01:29]} Kg7 {[%emt 0:02:41]} 55. Qd7 {[%emt 0:00:31]} d2 {[%emt 0:00:45]} 56. Qe7 {[%emt 0:00:30]} Qxe5 {[%emt 0:00:14]} 57. Qd8 {[%emt 0:00:29]} Qf5+ {[%emt 0:00:35]} 58. Kh5 {[%emt 0:00:00]} g4+ {[%emt 0:00:14]} 59. Kh4 {[%emt 0:00:01]} Qf6+ 0-1

[Event "European School-ch 2019"]
[Site "Mamaia"]
[Date "2019.06.01"]
[Round "2.5"]
[White "Denisov, Timofey"]
[Black "Gayun, Dmytro"]
[Result "0-1"]
[ECO "D45"]
[WhiteElo "1788"]
[BlackElo "2271"]
[Annotator "ChessBase"]
[PlyCount "52"]
[EventDate "2019.05.31"]
[EventType "swiss"]
[EventCountry "ROU"]
[SourceTitle "playchess.com"]
[Source "ChessBase"]
[SourceQuality "1"]
[TimeControl "40/5400+30:1800+30"]

1. d4 {[%emt 0:00:00]} d5 {[%emt 0:00:00]} 2. c4 {[%emt 0:00:00]} e6 {[%emt 0:00:17]} 3. Nc3 {[%emt 0:00:00]} Nf6 {[%emt 0:00:14]} 4. Nf3 {[%emt 0:00:17]} c6 {[%emt 0:01:23]} 5. e3 {[%emt 0:02:19]} Be7 {[%emt 0:01:31]} 6. Qc2 {[%emt 0:00:23]} O-O {[%emt 0:02:15]} 7. b3 {[%emt 0:00:27]} Nbd7 {[%emt 0:03:05]} 8. Bd3 {[%emt 0:00:57]} b6 {[%emt 0:01:47]} 9. O-O {[%emt 0:00:26]} Bb7 {[%emt 0:00:30]} 10. e4 {[%emt 0:06:18]} dxe4 {[%emt 0:00:12]} 11. Nxe4 {[%emt 0:00:09]} Nxe4 {[%emt 0:01:06]} 12. Bxe4 {[%emt 0:00:10]} Nf6 {[%emt 0:00:42]} 13. Bd3 {[%emt 0:00:17]} c5 {[%emt 0:02:27]} 14. dxc5 {[%emt 0:01:33]} Bxf3 {[%emt 0:03:24]} 15. gxf3 {[%emt 0:00:10]} Bxc5 {[%emt 0:22:30]} 16. Bb2 {[%emt 0:00:33]} h6 {[%emt 0:02:22]} 17. Kh1 {[%emt 0:05:07]} Qe7 {[%emt 0:08:06]} 18. Rg1 {[%emt 0:03:13]} Nh5 {[%emt 0:08:15]} 19. Qd2 {[%emt 0:06:46]} g5 {[%emt 0:06:28]} 20. h4 {[%emt 0:01:25]} f6 {[%emt 0:00:43]} 21. hxg5 {[%emt 0:11:52]} hxg5 {[%emt 0:02:31]} 22. Bg6 {[%emt 0:18:32]} Rad8 {[%emt 0:09:45]} 23. Qc1 {[%emt 0:01:49]} Nf4 {[%emt 0:04:11]} 24. Bb1 {[%emt 0:11:11]} Kf7 {[%emt 0:01:14]} 25. Rg4 {[%emt 0:07:08]} Rh8+ {[%emt 0:00:16]} 26. Kg1 {[%emt 0:00:14]} Ne2+ {[%emt 0:00:06]} 0-1

[Event "European School-ch 2019"]
[Site "Mamaia"]
[Date "2019.06.01"]
[Round "2.6"]
[White "Celik, Eylul"]
[Black "Sahin, Hayrun Nisa"]
[Result "1/2-1/2"]
[ECO "E81"]
[WhiteElo "1841"]
[BlackElo "1734"]
[Annotator "NA"]
[PlyCount "42"]
[EventDate "2019.05.31"]
[EventType "swiss"]
[EventCountry "ROU"]
[SourceTitle "playchess.com"]
[Source "ChessBase"]
[SourceQuality "1"]
[TimeControl "40/5400+30:1800+30"]

1. d4 {[%emt 0:00:00]} Nf6 {[%emt 0:00:00]} 2. c4 {[%emt 0:00:00]} g6 {[%emt 0:00:00]} 3. Nc3 {[%emt 0:00:00]} Bg7 {[%emt 0:00:06]} 4. e4 {[%emt 0:00:00]} d6 {[%emt 0:00:08]} 5. f3 {[%emt 0:00:00]} O-O {[%emt 0:00:06]} 6. Be3 {[%emt 0:00:03]} c5 {[%emt 0:01:25]} 7. Nge2 {[%emt 0:01:02]} cxd4 {[%emt 0:01:13]} 8. Nxd4 {[%emt 0:01:11]} Nc6 {[%emt 0:00:26]} 9. Be2 {[%emt 0:02:58]} Nxd4 10. Bxd4 {[%emt 0:03:22]} Be6 {[%emt 0:01:59]} 11. O-O {[%emt 0:02:18]} Qa5 {[%emt 0:01:09]} 12. Kh1 {[%emt 0:08:52]} Rfc8 {[%emt 0:03:10]} 13. Nd5 {[%emt 0:07:33]} Nxd5 {[%emt 0:06:09]} 14. exd5 {[%emt 0:08:59]} Bd7 {[%emt 0:01:20]} 15. Bxg7 {[%emt 0:11:06]} Kxg7 {[%emt 0:00:38]} 16. a3 {[%emt 0:00:05]} b5 {[%emt 0:26:00]} 17. Qd4+ {[%emt 0:04:57]} Kg8 {[%emt 0:01:43]} 18. b4 {[%emt 0:01:10]} Qb6 {[%emt 0:00:11]} 19. Qe4 {[%emt 0:06:50]} bxc4 {[%emt 0:09:50]} 20. Bxc4 {[%emt 0:00:30]} Rxc4 {[%emt 0:00:30]} 21. Qxc4 {[%emt 0:00:30]} Bb5 {[%emt 0:00:30]} 1/2-1/2

[Event "European School-ch 2019"]
[Site "Mamaia"]
[Date "2019.06.01"]
[Round "2.7"]
[White "Vilcu, Matei-Stefan"]
[Black "Ceres, Dragos"]
[Result "0-1"]
[ECO "C55"]
[WhiteElo "1991"]
[BlackElo "2291"]
[Annotator "ChessBase"]
[PlyCount "82"]
[EventDate "2019.05.31"]
[EventType "swiss"]
[EventCountry "ROU"]
[SourceTitle "playchess.com"]
[Source "ChessBase"]
[SourceQuality "1"]
[TimeControl "40/5400+30:1800+30"]

1. e4 {[%emt 0:00:00]} e5 {[%emt 0:00:00]} 2. Nf3 {[%emt 0:00:00]} Nc6 {[%emt 0:00:00]} 3. Bc4 {[%emt 0:00:00]} Nf6 {[%emt 0:00:00]} 4. d3 {[%emt 0:00:00]} h6 {[%emt 0:00:00]} 5. a4 {[%emt 0:01:19]} d6 {[%emt 0:00:13]} 6. a5 {[%emt 0:00:35]} a6 {[%emt 0:00:16]} 7. O-O {[%emt 0:01:35]} g5 {[%emt 0:01:33]} 8. c3 {[%emt 0:02:05]} Bg7 {[%emt 0:00:25]} 9. Re1 {[%emt 0:02:30]} O-O {[%emt 0:00:20]} 10. Nfd2 {[%emt 0:13:07]} Ne7 {[%emt 0:08:27]} 11. Nf1 {[%emt 0:01:21]} Ng6 {[%emt 0:00:31]} 12. g3 {[%emt 0:05:19]} c6 {[%emt 0:03:17]} 13. Qe2 {[%emt 0:06:01]} d5 {[%emt 0:08:23]} 14. Bb3 {[%emt 0:00:21]} Be6 {[%emt 0:00:22]} 15. Nbd2 {[%emt 0:07:18]} Qd7 {[%emt 0:03:53]} 16. Bc2 {[%emt 0:11:40]} Bg4 {[%emt 0:16:02]} 17. Nf3 {[%emt 0:08:01]} Nh5 {[%emt 0:12:18]} 18. Ne3 {[%emt 0:06:25]} Nhf4 {[%emt 0:04:21]} 19. gxf4 {[%emt 0:15:07]} Nh4 {[%emt 0:01:47]} 20. Nxe5 {[%emt 0:00:38]} Bxe2 {[%emt 0:00:06]} 21. Nxd7 {[%emt 0:00:10]} Nf3+ {[%emt 0:00:03]} 22. Kh1 {[%emt 0:00:13]} Nxe1 {[%emt 0:00:02]} 23. Nxf8 {[%emt 0:00:19]} gxf4 {[%emt 0:11:57]} 24. Bd1 {[%emt 0:10:29]} Bxd3 {[%emt 0:02:21]} 25. Ng2 {[%emt 0:01:45]} Nxg2 {[%emt 0:03:34]} 26. Kxg2 {[%emt 0:00:15]} Bxe4+ {[%emt 0:00:57]} 27. f3 {[%emt 0:00:51]} Bf5 {[%emt 0:00:07]} 28. Bxf4 {[%emt 0:00:25]} Bxf8 {[%emt 0:00:08]} 29. Be3 {[%emt 0:01:42]} Re8 {[%emt 0:01:15]} 30. Kf2 {[%emt 0:00:34]} Kh7 {[%emt 0:00:10]} 31. Ra4 {[%emt 0:01:00]} c5 {[%emt 0:05:05]} 32. Bb3 {[%emt 0:02:01]} Rd8 {[%emt 0:00:53]} 33. Rf4 {[%emt 0:00:50]} Kg6 {[%emt 0:00:16]} 34. h4 {[%emt 0:00:24]} h5 {[%emt 0:01:17]} 35. Ra4 {[%emt 0:01:11]} Be7 {[%emt 0:00:59]} 36. Kg3 {[%emt 0:00:20]} Bd3 {[%emt 0:04:02]} 37. Ra1 {[%emt 0:00:50]} Kf5 {[%emt 0:00:59]} 38. Rd1 {[%emt 0:00:51]} c4 {[%emt 0:01:01]} 39. Ba2 {[%emt 0:00:37]} Rg8+ {[%emt 0:00:18]} 40. Kh3 {[%emt 0:00:00]} Bd6 {[%emt 0:00:00]} 41. Bf2 {[%emt 0:02:21]} Kf4 {[%emt 0:01:52]} 0-1

[Event "European School-ch 2019"]
[Site "Mamaia"]
[Date "2019.06.01"]
[Round "2.8"]
[White "Ognean, Mihnea-Ionut"]
[Black "Kasaeva, Sofiia"]
[Result "1-0"]
[ECO "C55"]
[WhiteElo "2260"]
[BlackElo "1890"]
[Annotator "ChessBase"]
[PlyCount "89"]
[EventDate "2019.05.31"]
[EventType "swiss"]
[EventCountry "ROU"]
[SourceTitle "playchess.com"]
[Source "ChessBase"]
[SourceQuality "1"]
[TimeControl "40/5400+30:1800+30"]

1. e4 {[%emt 0:00:00]} e5 {[%emt 0:00:00]} 2. Nf3 Nc6 {[%emt 0:00:00]} 3. Bc4 {[%emt 0:00:00]} Nf6 {[%emt 0:00:00]} 4. d3 {[%emt 0:00:00]} Be7 {[%emt 0:00:00]} 5. O-O {[%emt 0:00:10]} O-O {[%emt 0:00:08]} 6. Re1 {[%emt 0:00:47]} d6 {[%emt 0:00:29]} 7. a4 {[%emt 0:00:05]} Na5 {[%emt 0:04:56]} 8. Ba2 {[%emt 0:00:05]} c5 {[%emt 0:00:21]} 9. c3 {[%emt 0:03:05]} Nc6 {[%emt 0:01:01]} 10. Na3 {[%emt 0:00:07]} a6 {[%emt 0:02:40]} 11. Bd2 {[%emt 0:04:22]} Bg4 {[%emt 0:07:41]} 12. h3 {[%emt 0:02:23]} Bh5 {[%emt 0:02:19]} 13. Nc4 {[%emt 0:04:25]} b5 {[%emt 0:02:58]} 14. axb5 {[%emt 0:00:06]} axb5 {[%emt 0:00:05]} 15. Ne3 {[%emt 0:00:05]} Na5 {[%emt 0:27:50]} 16. g4 {[%emt 0:15:00]} Bg6 {[%emt 0:00:37]} 17. Nh4 {[%emt 0:03:16]} c4 {[%emt 0:02:57]} 18. Nxg6 {[%emt 0:01:28]} fxg6 {[%emt 0:02:57]} 19. b3 {[%emt 0:08:11]} cxb3 {[%emt 0:03:32]} 20. Bxb3+ {[%emt 0:00:07]} Kh8 {[%emt 0:00:12]} 21. Ba2 {[%emt 0:06:59]} Nd7 {[%emt 0:01:15]} 22. Nd5 {[%emt 0:02:48]} Bg5 {[%emt 0:02:39]} 23. Kg2 {[%emt 0:02:19]} Nc5 {[%emt 0:01:24]} 24. Bxg5 {[%emt 0:09:00]} Qxg5 {[%emt 0:00:06]} 25. Qe2 {[%emt 0:00:26]} Ra7 {[%emt 0:02:24]} 26. Rab1 {[%emt 0:03:30]} Raf7 {[%emt 0:02:01]} 27. Rf1 {[%emt 0:00:25]} Rf3 {[%emt 0:01:50]} 28. Rxb5 {[%emt 0:03:44]} Nab7 {[%emt 0:01:45]} 29. Qxf3 {[%emt 0:04:27]} Rxf3 {[%emt 0:00:08]} 30. Kxf3 {[%emt 0:00:04]} h5 {[%emt 0:03:04]} 31. Bc4 {[%emt 0:06:01]} Nd8 {[%emt 0:08:39]} 32. Rb8 {[%emt 0:02:29]} Kh7 {[%emt 0:00:47]} 33. Ra1 {[%emt 0:01:01]} Qh4 {[%emt 0:05:18]} 34. Kg2 {[%emt 0:11:55]} hxg4 {[%emt 0:01:21]} 35. Rh1 {[%emt 0:00:08]} g3 {[%emt 0:00:19]} 36. fxg3 {[%emt 0:00:39]} Qg5 {[%emt 0:00:49]} 37. Rb2 {[%emt 0:04:41]} Nde6 {[%emt 0:01:18]} 38. Rf2 {[%emt 0:00:36]} Qh6 {[%emt 0:07:39]} 39. Ra1 {[%emt 0:01:23]} Ng5 {[%emt 0:03:26]} 40. h4 {[%emt 0:00:00]} Nge6 {[%emt 0:00:00]} 41. Ra7 {[%emt 0:11:00]} Qc1 {[%emt 0:03:51]} 42. Re7 {[%emt 0:01:40]} Qd1 {[%emt 0:04:23]} 43. Nf6+ {[%emt 0:08:26]} Kh6 {[%emt 0:00:06]} 44. Bxe6 {[%emt 0:00:04]} gxf6 {[%emt 0:00:57]} 45. Bg8 {[%emt 0:00:11]} 1-0